fUSD/lending_fUSD_20260412
["ID","MTS","AMOUNT","RATE_DAILY","PERIOD"]
[420299933,1775935832199,-8543.06796402,0.00011553,2]
[420299934,1775935832208,-5055.3463,0.00011555,2]
[420299936,1775935832219,-237.16151795,0.00011573,2]
[420299938,1775935832229,-1503.2280866,0.00011573,2]
[420299940,1775935832238,-298.47,0.0001158,2]
[420299942,1775935832248,-439.85881611,0.0001161,2]
[420299944,1775935832258,-178.94334266,0.00011628,2]
[420299945,1775935832267,-1503.22808659,0.00011637,2]
[420299946,1775935832276,-639.44,0.0001165,2]
[420299947,1775935832285,-500.0,0.0001165,2]
[420299948,1775935832295,-517.57641388,0.00011651,2]
[420299949,1775935832305,-500.0,0.00011651,2]
[420299950,1775935832315,-500.0,0.00011651,2]
[420299951,1775935832325,-348.08049699,0.00011651,2]
[420299952,1775935832340,-276.36674527,0.00011651,2]
[420299953,1775935832349,-185.23749901,0.00011651,2]
[420299954,1775935832359,-347.87474988,0.00011651,2]
[420299955,1775935832369,-500.0,0.00011651,2]
[420299956,1775935832387,-500.0,0.00011651,2]
[420299957,1775935832402,-267.1875806,0.00011651,2]
[420299958,1775935832412,-500.0,0.00011651,2]
[420299959,1775935832434,-309.42434094,0.00011651,2]
[420299960,1775935832445,-151.0,0.00011652,2]
[420299962,1775935832459,-500.0,0.00011654,2]
[420299964,1775935832482,-425.7636655,0.00011654,2]
[420299966,1775935832493,-500.0,0.00011654,2]
[420299968,1775935832508,-500.0,0.00011654,2]
[420299970,1775935832522,-500.0,0.00011654,2]
[420299972,1775935832542,-500.0,0.00011654,2]
[420299974,1775935832555,-500.0,0.00011654,2]
[420299976,1775935832575,-302.3254676,0.00011654,2]
[420299978,1775935832591,-1083.36586075,0.00011654,2]
[420299980,1775935832608,-1083.36586075,0.00011654,2]
[420299982,1775935832626,-1083.36586075,0.00011654,2]
[420299984,1775935832637,-1083.36586075,0.00011654,2]
[420299986,1775935832658,-1083.36586075,0.00011654,2]
[420299988,1775935832677,-1083.36586075,0.00011654,2]
[420299990,1775935832689,-1083.36586075,0.00011654,2]
[420299992,1775935832714,-1083.36586075,0.00011654,2]
[420299994,1775935832723,-1083.36586075,0.00011654,2]
[420299996,1775935832734,-1083.36586075,0.00011654,2]
[420299999,1775935832760,-1083.36586075,0.00011654,2]
[420300000,1775935832770,-1083.36586075,0.00011654,2]
[420300003,1775935832784,-1083.36586075,0.00011654,2]
[420300005,1775935832807,-1083.36586075,0.00011654,2]
[420300007,1775935832818,-1083.36586075,0.00011654,2]
[420300009,1775935832830,-1083.36586075,0.00011654,2]
[420300011,1775935832852,-1083.36586075,0.00011654,2]
[420300013,1775935832862,-1083.36586075,0.00011654,2]
[420300015,1775935832873,-1083.36586075,0.00011654,2]
[420300017,1775935832894,-1083.36586075,0.00011654,2]
[420300019,1775935832906,-223.83892441,0.00011654,2]
[420300021,1775935832918,-859.52693634,0.00011654,2]
[420300023,1775935832940,-1083.36586075,0.00011654,2]
[420300026,1775935832954,-1083.36586075,0.00011654,2]
[420300028,1775935832967,-878.21232422,0.00011654,2]
[420300030,1775935832989,-205.15353653,0.00011654,2]
[420300032,1775935833001,-1083.36586075,0.00011654,2]
[420300035,1775935833018,-1083.36586075,0.00011654,2]
[420300036,1775935833038,-1083.36586075,0.00011654,2]
[420300039,1775935833053,-1083.36586075,0.00011654,2]
[420300040,1775935833071,-1083.36586075,0.00011654,2]
[420300042,1775935833082,-1083.36586075,0.00011654,2]
[420300045,1775935833097,-1083.36586075,0.00011654,2]
[420300046,1775935833127,-1083.36586075,0.00011654,2]
[420300048,1775935833141,-1083.36586075,0.00011654,2]
[420300051,1775935833172,-1083.36586075,0.00011654,2]
[420300053,1775935833199,-1083.36586075,0.00011654,2]
[420300055,1775935833214,-1083.36586075,0.00011654,2]
[420300057,1775935833231,-1083.36586075,0.00011654,2]
[420300059,1775935833251,-1083.36586075,0.00011654,2]
[420300061,1775935833264,-1083.36586075,0.00011654,2]
[420300063,1775935833274,-1083.36586075,0.00011654,2]
[420300064,1775935833301,-1072.53220215,0.00011654,2]
[420300067,1775935833317,-1072.53220215,0.00011654,2]
[420300069,1775935833343,-1072.53220215,0.00011654,2]
[420300071,1775935833357,-1072.53220215,0.00011654,2]
[420300072,1775935833371,-1072.53220215,0.00011654,2]
[420300074,1775935833385,-1072.53220215,0.00011654,2]
[420300076,1775935833395,-1072.53220215,0.00011654,2]
[420300078,1775935833406,-1072.53220215,0.00011654,2]
[420300080,1775935833418,-1072.53220215,0.00011654,2]
[420300082,1775935833432,-1072.53220215,0.00011654,2]
[420300084,1775935833443,-1072.53220215,0.00011654,2]
[420300086,1775935833454,-1072.53220215,0.00011654,2]
[420300088,1775935833466,-1072.53220215,0.00011654,2]
[420300090,1775935833478,-1072.53220215,0.00011654,2]
[420300092,1775935833491,-1072.53220215,0.00011654,2]
[420300094,1775935833502,-601.6658532,0.00011654,2]
[420300096,1775935833518,-470.86634895,0.00011654,2]
[420300098,1775935833529,-216.13365105,0.00011655,2]
[420300104,1775935833606,-1072.53220215,0.00011654,2]
[420300106,1775935833620,-1072.53220215,0.00011654,2]
[420300108,1775935833630,-601.5031917,0.00011654,2]
[420300110,1775935833646,-471.02901045,0.00011654,2]
[420300112,1775935833666,-1879.73176303,0.00011655,2]
[420300114,1775935833678,-2318.46368358,0.00011655,2]
[420300115,1775935833702,-3383.42896817,0.00011655,2]
[420300116,1775935833717,-1421.96416629,0.00011655,2]
[420300117,1775935833731,-75627.12458839,0.00011655,2]
[420300118,1775935833747,-20149.50536458,0.00011655,2]
[420300119,1775935837669,-840.97612167,0.00011654,2]
[420300120,1775935837796,-231.55608048,0.00011654,2]
[420300121,1775935837808,-1072.53220215,0.00011654,2]
[420300122,1775935837822,-1072.53220215,0.00011654,2]
[420300123,1775935837838,-1072.53220215,0.00011654,2]
[420300124,1775935837852,-1072.53220215,0.00011654,2]
[420300125,1775935837862,-1072.53220215,0.00011654,2]
[420300126,1775935837872,-1072.53220215,0.00011654,2]
[420300127,1775935837882,-1072.53220215,0.00011654,2]
[420300128,1775935837897,-1072.53220215,0.00011654,2]
[420300129,1775935837908,-1072.53220215,0.00011654,2]
[420300130,1775935837919,-1072.53220215,0.00011654,2]
[420300131,1775935837930,-1072.53220215,0.00011654,2]
[420300132,1775935837943,-500.0,0.00011654,2]
[420300133,1775935837954,-1072.53220215,0.00011654,2]
[420300134,1775935837964,-1072.53220215,0.00011654,2]
[420300135,1775935837974,-1072.53220215,0.00011654,2]
[420300136,1775935837990,-1072.53220215,0.00011654,2]
[420300137,1775935838003,-500.0,0.00011654,2]
[420300138,1775935838022,-1072.53220215,0.00011654,2]
[420300139,1775935838034,-500.0,0.00011654,2]
[420300140,1775935838048,-1072.53220215,0.00011654,2]
[420300141,1775935838073,-226.53661998,0.00011654,2]
[420300142,1775935838086,-45637.67294407,0.00011655,2]
[420300143,1775935838106,-9561.50740717,0.00011655,2]
[420300144,1775935838134,-339.88265974,0.00011655,2]
[420300145,1775935838166,-4260.6368868,0.00011655,2]
[420300146,1775935838229,-400.82221569,0.00011655,2]
[420300147,1775935838296,-312.23660435,0.00011655,2]
[420300148,1775935838311,-10915.79728157,0.00011655,2]
[420300149,1775935838339,-6275.55825757,0.00011655,2]
[420300153,1775935838399,-467.4334257,0.00011655,2]
[420300185,1775935841424,-1274.66071616,0.00011655,2]
[420300186,1775935841451,-208254.67559188,0.00011655,2]
[420300189,1775935841516,-334.31035746,0.00011655,2]
[420300190,1775935841663,-550.0,0.00011655,2]
[420300191,1775935841676,-17004.0,0.00011655,2]
[420300192,1775935841765,-1000.0,0.00011655,2]
[420300218,1775935842785,-383829.11238786,0.00011655,2]
[420300219,1775935842797,-604.0,0.00011655,2]
[420300230,1775935845581,-11561.50000005,0.00011655,2]
[420300231,1775935845594,-6830.29115,0.00011655,2]
[420300232,1775935845707,-109166.9999975,0.00011655,2]
[420300237,1775937031819,-407.0,0.00010687,2]
[420300240,1775937031877,-1593.0,0.00010687,2]
[420300242,1775937031902,-500.0,0.00010703,2]
[420300244,1775937031911,-250.0,0.00010726,2]
[420300246,1775937031931,-1500.0,0.00010748,2]
[420300248,1775937031948,-239.9125053,0.00010768,2]
[420300250,1775937031957,-500.0,0.00010768,2]
[420300252,1775937031971,-500.0,0.00010768,2]
[420300254,1775937031986,-500.0,0.00010768,2]
[420300256,1775937031995,-360.3730142,0.00010768,2]
[420300257,1775937032005,-500.0,0.00010768,2]
[420300258,1775937032016,-500.0,0.00010768,2]
[420300259,1775937032027,-500.0,0.00010768,2]
[420300260,1775937032038,-500.0,0.00010768,2]
[420300261,1775937032050,-500.0,0.00010768,2]
[420300262,1775937032061,-500.0,0.00010768,2]
[420300263,1775937032073,-500.0,0.00010768,2]
[420300264,1775937032087,-368.39208307,0.00010768,2]
[420300265,1775937032107,-131.60791693,0.00010768,2]
[420300266,1775937032118,-500.0,0.00010768,2]
[420300267,1775937032140,-500.0,0.00010768,2]
[420300268,1775937032154,-500.0,0.00010768,2]
[420300269,1775937032165,-500.0,0.00010768,2]
[420300270,1775937032183,-212.7109129,0.00010768,2]
[420300271,1775937032207,-203.83986602,0.00010768,2]
[420300272,1775937032231,-277.22012015,0.00010768,2]
[420300273,1775937032250,-150.0,0.00010768,2]
[420300274,1775937032272,-294.27151014,0.00010768,2]
[420300275,1775937032302,-150.0,0.00010768,2]
[420300276,1775937032313,-150.0,0.00010768,2]
[420300277,1775937032343,-150.0,0.00010768,2]
[420300278,1775937032353,-150.0,0.00010768,2]
[420300279,1775937032371,-150.0,0.00010768,2]
[420300280,1775937032389,-172.71610205,0.00010768,2]
[420300281,1775937032399,-150.0,0.00010768,2]
[420300282,1775937032425,-150.0,0.00010768,2]
[420300283,1775937032437,-150.0,0.00010768,2]
[420300284,1775937032447,-150.0,0.00010768,2]
[420300285,1775937032468,-197.01408895,0.00010768,2]
[420300286,1775937032477,-150.0,0.00010768,2]
[420300287,1775937032487,-150.0,0.00010768,2]
[420300288,1775937032503,-204.09937699,0.00010768,2]
[420300289,1775937032515,-500.0,0.00010768,2]
[420300290,1775937032524,-500.0,0.00010768,2]
[420300291,1775937032533,-500.0,0.00010768,2]
[420300292,1775937032554,-500.0,0.00010768,2]
[420300293,1775937032563,-500.0,0.00010768,2]
[420300294,1775937032573,-500.0,0.00010768,2]
[420300295,1775937032586,-500.0,0.00010768,2]
[420300296,1775937032600,-500.0,0.00010768,2]
[420300297,1775937032609,-150.0,0.00010768,2]
[420300298,1775937032618,-500.0,0.00010768,2]
[420300299,1775937032630,-150.0,0.00010768,2]
[420300300,1775937032643,-500.0,0.00010768,2]
[420300301,1775937032653,-223.44111523,0.00010768,2]
[420300302,1775937032662,-500.0,0.00010768,2]
[420300303,1775937032673,-878.93,0.00010959,2]
[420300304,1775937032684,-150.0,0.00011041,2]
[420300305,1775937032693,-500.0,0.00011042,2]
[420300306,1775937032703,-500.0,0.00011042,2]
[420300307,1775937032714,-500.0,0.00011042,2]
[420300308,1775937032723,-500.0,0.00011042,2]
[420300309,1775937032732,-500.0,0.00011042,2]
[420300310,1775937032742,-500.0,0.00011042,2]
[420300311,1775937032751,-500.0,0.00011042,2]
[420300312,1775937032763,-500.0,0.00011042,2]
[420300313,1775937032772,-500.0,0.00011042,2]
[420300314,1775937032781,-500.0,0.00011042,2]
[420300315,1775937032791,-500.0,0.00011042,2]
[420300316,1775937032801,-500.0,0.00011042,2]
[420300317,1775937032817,-500.0,0.00011042,2]
[420300318,1775937032826,-500.0,0.00011042,2]
[420300319,1775937032836,-500.0,0.00011042,2]
[420300320,1775937032849,-500.0,0.00011042,2]
[420300321,1775937032860,-500.0,0.00011042,2]
[420300322,1775937032871,-500.0,0.00011042,2]
[420300323,1775937032885,-161.79295233,0.00011042,2]
[420300324,1775937032895,-500.0,0.00011042,2]
[420300325,1775937032907,-500.0,0.00011042,2]
[420300326,1775937032928,-573.7943079,0.00011042,2]
[420300327,1775937032939,-500.0,0.00011042,2]
[420300328,1775937032955,-500.0,0.00011042,2]
[420300329,1775937032969,-500.0,0.00011042,2]
[420300330,1775937032982,-588.68809217,0.00011042,2]
[420300331,1775937033001,-150.0,0.00011042,2]
[420300332,1775937033014,-150.0,0.00011042,2]
[420300333,1775937033031,-150.0,0.00011042,2]
[420300334,1775937033049,-268.16178489,0.00011042,2]
[420300335,1775937033064,-150.0,0.00011042,2]
[420300336,1775937033091,-207.44139279,0.00011042,2]
[420300337,1775937033103,-150.0,0.00011042,2]
[420300338,1775937033122,-150.0,0.00011042,2]
[420300339,1775937033147,-500.0,0.00011042,2]
[420300340,1775937033162,-165.55592926,0.00011042,2]
[420300341,1775937033174,-500.0,0.00011042,2]
[420300342,1775937033195,-500.0,0.00011042,2]
[420300343,1775937033210,-500.0,0.00011042,2]
[420300344,1775937033233,-500.0,0.00011042,2]
[420300345,1775937033243,-446.12605047,0.00011042,2]
[420300346,1775937033285,-500.0,0.00011042,2]
[420300347,1775937033325,-500.0,0.00011042,2]
[420300348,1775937033347,-355.8735514,0.00011042,2]
[420300349,1775937033366,-150.0,0.00011042,2]
[420300350,1775937033381,-249.7581,0.00011218,2]
[420300351,1775937033401,-8434.82223498,0.00011273,2]
[420300352,1775937033413,-672.81,0.00011316,2]
[420300353,1775937033424,-1536.855,0.00011316,2]
[420300354,1775937033433,-162.152,0.00011316,2]
[420300355,1775937033443,-500.0,0.00011317,2]
[420300356,1775937033455,-208.57563399,0.00011317,2]
[420300357,1775937033467,-500.0,0.00011317,2]
[420300358,1775937033476,-500.0,0.00011317,2]
[420300359,1775937033489,-500.0,0.00011317,2]
[420300360,1775937033503,-500.0,0.00011317,2]
[420300361,1775937033515,-500.0,0.00011317,2]
[420300362,1775937033531,-500.0,0.00011317,2]
[420300363,1775937033546,-500.0,0.00011317,2]
[420300364,1775937033559,-600.0,0.00011317,2]
[420300365,1775937033568,-228.04365333,0.00011317,2]
[420300366,1775937033579,-296.8796928,0.00011317,2]
[420300367,1775937033596,-444.59896374,0.00011317,2]
[420300368,1775937033607,-500.0,0.00011317,2]
[420300369,1775937033619,-500.0,0.00011317,2]
[420300370,1775937033631,-500.0,0.00011317,2]
[420300371,1775937033654,-248.03456585,0.00011317,2]
[420300372,1775937033664,-500.0,0.00011317,2]
[420300373,1775937033677,-500.0,0.00011317,2]
[420300374,1775937033706,-76.56732646,0.00011317,2]
[420300375,1775937033733,-423.43267354,0.00011317,2]
[420300377,1775937033747,-500.0,0.00011317,2]
[420300379,1775937033756,-500.0,0.00011317,2]
[420300381,1775937033775,-500.0,0.00011317,2]
[420300383,1775937033784,-232.45682337,0.00011317,2]
[420300385,1775937033795,-267.54317663,0.00011317,2]
[420300387,1775937033818,-500.0,0.00011317,2]
[420300389,1775937033826,-247.50381073,0.00011317,2]
[420300391,1775937033842,-252.49618927,0.00011317,2]
[420300393,1775937033859,-500.0,0.00011317,2]
[420300394,1775937033869,-500.0,0.00011317,2]
[420300396,1775937033883,-147.50381073,0.00011317,2]
[420300398,1775937033895,-352.49618927,0.00011317,2]
[420300400,1775937033907,-500.0,0.00011317,2]
[420300402,1775937033924,-142.38557314,0.00011317,2]
[420300411,1775937034073,-357.61442686,0.00011317,2]
[420300413,1775937034098,-500.0,0.00011317,2]
[420300415,1775937034112,-500.0,0.00011317,2]
[420300416,1775937034121,-500.0,0.00011317,2]
[420300418,1775937034139,-500.0,0.00011317,2]
[420300420,1775937034152,-490.37419995,0.00011317,2]
[420300456,1775937037899,-9.62580005,0.00011317,2]
[420300457,1775937037909,-500.0,0.00011317,2]
[420300458,1775937037918,-500.0,0.00011317,2]
[420300459,1775937037927,-500.0,0.00011317,2]
[420300460,1775937037937,-208.55524743,0.00011317,2]
[420300461,1775937038019,-291.44475257,0.00011317,2]
[420300462,1775937038031,-287.32191187,0.00011317,2]
[420300478,1775937040490,-212.67808813,0.00011317,2]
[420300479,1775937040507,-500.0,0.00011317,2]
[420300480,1775937040516,-500.0,0.00011317,2]
[420300481,1775937040541,-500.0,0.00011317,2]
[420300482,1775937040553,-186.43414916,0.00011317,2]
[420300483,1775937040563,-500.0,0.00011317,2]
[420300484,1775937040595,-500.0,0.00011317,2]
[420300485,1775937040604,-500.0,0.00011317,2]
[420300486,1775937040618,-500.0,0.00011317,2]
[420300487,1775937040641,-500.0,0.00011317,2]
[420300488,1775937040650,-500.0,0.00011317,2]
[420300489,1775937040667,-500.0,0.00011317,2]
[420300490,1775937040687,-500.0,0.00011317,2]
[420300491,1775937040696,-368.64341492,0.00011317,2]
[420300492,1775937040705,-500.0,0.00011317,2]
[420300493,1775937040715,-500.0,0.00011317,2]
[420300494,1775937040729,-500.0,0.00011317,2]
[420300495,1775937040738,-500.0,0.00011317,2]
[420300496,1775937040748,-500.0,0.00011317,2]
[420300498,1775937041094,-263.18260165,0.00011317,2]
[420300499,1775937041136,-500.0,0.00011317,2]
[420300500,1775937041148,-227.37,0.00011317,2]
[420300501,1775937041169,-4222.66013599,0.00011318,2]
[420300502,1775937041186,-14563.74441144,0.00011318,2]
[420300503,1775937041207,-7954.2,0.00011318,2]
[420300511,1775937042845,-52330.10218999,0.00011318,2]
[420300512,1775937042980,500.0,0.0003013,120]
[420300514,1775937045837,-368.57,0.00011318,2]
[420300517,1775937046173,-377217.51706258,0.00011318,2]
[420300518,1775937046195,-500.0,0.00011373,2]
[420300519,1775937046204,-159.976,0.00011373,2]
[420300520,1775937046214,-160.003998,0.00011373,2]
[420300521,1775937046243,-317.95866,0.00011373,2]
[420300522,1775937046253,-220.96705391,0.00011373,2]
[420300523,1775937046263,-159.976,0.00011373,2]
[420300524,1775937046307,-159.9795,0.00011373,2]
[420300525,1775937046322,-500.0,0.00011373,2]
[420300526,1775937046351,-500.0,0.00011373,2]
[420300527,1775937046370,-500.0,0.00011373,2]
[420300528,1775937046379,-500.050472,0.00011373,2]
[420300529,1775937046389,-500.11916237,0.00011373,2]
[420300530,1775937046402,-500.79950766,0.00011373,2]
[420300531,1775937046434,-500.0,0.00011373,2]
[420300532,1775937046466,-381.33672147,0.00011373,2]
[420300533,1775937046519,-500.0,0.00011373,2]
[420300534,1775937046539,-500.0,0.00011373,2]
[420300535,1775937046551,-500.0,0.00011373,2]
[420300536,1775937046569,-500.0,0.00011373,2]
[420300537,1775937046579,-500.0,0.00011373,2]
[420300538,1775937046589,-500.53114174,0.00011373,2]
[420300539,1775937046599,-167.75782737,0.00011373,2]
[420300540,1775937046616,-165.13319512,0.00011373,2]
[420300541,1775937046643,-500.0,0.00011373,2]
[420300542,1775937046653,-160.05927618,0.00011373,2]
[420300543,1775937046663,-500.16588991,0.00011373,2]
[420300544,1775937046677,-500.0,0.00011373,2]
[420300545,1775937046692,-48036.7073,0.00011455,2]
[420300546,1775937046712,-3430.09,0.00011507,2]
[420300547,1775937046721,-672.81,0.0001159,2]
[420300548,1775937046733,-1233.0332905,0.00011655,2]
[420300549,1775937046776,-200.0,0.00011655,2]
[420300550,1775937046788,-38435.0246872,0.00011655,2]
[420300551,1775937046802,-3138.328693,0.00011655,2]
[420300552,1775937046833,-200.0,0.00011655,2]
[420300553,1775937046873,-200.0,0.00011655,2]
[420300554,1775937046947,-200.0,0.00011655,2]
[420300555,1775937046972,-152.0,0.00011676,7]
[420300556,1775937046982,-152.0,0.00011676,7]
[420300557,1775937046996,-152.0,0.00011676,7]
[420300558,1775937047021,-152.0,0.00011677,7]
[420300559,1775937047031,-152.0,0.00011677,7]
[420300560,1775937047045,-152.0,0.00011677,7]
[420300561,1775937047062,-200.0,0.000117,2]
[420300562,1775937047075,-195.0,0.00011755,2]
[420300563,1775937047091,-195.0,0.00011755,2]
[420300564,1775937047116,-195.0,0.00011755,2]
[420300565,1775937047210,-195.0,0.00011755,2]
[420300566,1775937047239,-195.0,0.00011755,2]
[420300567,1775937047252,-600.0,0.00011755,2]
[420300568,1775937047286,-600.0,0.00011755,2]
[420300569,1775937047297,-600.0,0.00011755,2]
[420300570,1775937047330,-600.0,0.00011755,2]
[420300571,1775937047341,-200.0,0.00011772,2]
[420300572,1775937047401,-200.0,0.00011772,2]
[420300573,1775937047439,-200.0,0.00011772,2]
[420300574,1775937047483,-250.0,0.00011774,2]
[420300575,1775937047504,-250.0,0.00011823,2]
[420300576,1775937047514,-522.49,0.00011828,2]
[420300577,1775937047525,-672.81,0.00011864,2]
[420300578,1775937047543,-200.0,0.00011889,2]
[420300579,1775937047555,-200.0,0.00011889,2]
[420300580,1775937047570,-200.0,0.00011889,2]
[420300581,1775937047587,-500.0,0.00011921,2]
[420300582,1775937047599,-500.0,0.00011921,2]
[420300583,1775937047609,-1000.0,0.00011921,2]
[420300584,1775937047671,-500.0,0.00011921,2]
[420300585,1775937047684,-500.0,0.00011921,2]
[420300586,1775937047695,-298.47,0.00011931,2]
[420300587,1775937047716,-150.0,0.00012,2]
[420300588,1775937047734,-200.0,0.00012008,2]
[420300589,1775937047767,-2000.0,0.00012022,2]
[420300590,1775937047783,-200.0,0.00012128,2]
[420300591,1775937047794,-672.81,0.00012138,2]
[420300592,1775937047805,-298.47,0.00012282,2]
[420300593,1775937047817,-672.81,0.00012412,2]
[420300594,1775937047830,-298.47,0.00012632,2]
[420300595,1775937047840,-200.0,0.00012659,2]
[420300596,1775937047850,-672.81,0.00012686,2]
[420300597,1775937047861,-150.0,0.00012742,2]
[420300598,1775937047874,-219.0,0.00012742,2]
[420300599,1775937047884,-8434.82223491,0.00012749,2]
[420300600,1775937047893,-260.45,0.00012816,2]
[420300601,1775937047902,-166.66,0.00012963,2]
[420300602,1775937047916,-151.0,0.0001298,2]
[420300603,1775937047926,-298.47,0.00012983,2]
[420300604,1775937047935,-2934.92,0.00013,2]
[420300605,1775937047945,-1059.44,0.00013,2]
[420300606,1775937047956,-2573.78,0.00013,2]
[420300607,1775937047966,-1642.03,0.00013,2]
[420300608,1775937047975,-1642.03,0.00013,2]
[420300609,1775937047985,-1642.03,0.00013,2]
[420300610,1775937047995,-1642.03,0.00013,2]
[420300611,1775937048007,-250.0,0.00013,2]
[420300612,1775937048019,-878.93,0.00013122,2]
[420300613,1775937048030,-385.84502209,0.00013127,2]
[420300614,1775937048045,-847.18826841,0.00013127,2]
[420300615,1775937048056,-8576.0132137,0.00013144,2]
[420300616,1775937048065,-171.6159,0.000132,2]
[420300617,1775937048075,-500.0,0.0001326,2]
[420300618,1775937048085,-298.47,0.00013334,2]
[420300619,1775937048097,-2000.0,0.00013358,2]
[420300620,1775937048107,-166.66,0.00013391,2]
[420300621,1775937048117,-3240.0,0.00013425,2]
[420300623,1775937048140,-578.20924308,0.00013447,2]
[420300626,1775937048149,-670.58624095,0.00013447,2]
[420300627,1775937048168,-194.72792766,0.00013447,2]
[420300628,1775937048182,-200.0,0.00013447,2]
[420300629,1775937048207,-7965.41053268,0.00013447,2]
[420300630,1775937048221,-12895.88924913,0.00013447,2]
[420300631,1775937048233,-1328.27659266,0.00013447,2]
[420300632,1775937048243,-194.72792766,0.00013447,2]
[420300633,1775937048261,-500.0,0.00013447,2]
[420300634,1775937048280,-500.0,0.00013447,2]
[420300635,1775937048300,-500.0,0.00013447,2]
[420300636,1775937048309,-664.61807424,0.00013447,2]
[420300637,1775937048322,-324.20832176,0.00013447,2]
[420300638,1775937048333,-151.0,0.00013447,2]
[420300639,1775937048342,-500.0,0.00013447,2]
[420300640,1775937048353,-170.0,0.00013447,2]
[420300641,1775937048369,-174.61919141,0.00013447,2]
[420300642,1775937048381,-156.2481852,0.00013474,2]
[420300643,1775937048392,-1913.5672018,0.00013476,2]
[420300644,1775937048406,-151.0,0.00013502,2]
[420300645,1775937048419,-500.0,0.00013502,2]
[420300646,1775937048429,-346.1041112,0.0001352,2]
[420300647,1775937048438,-500.0,0.00013557,2]
[420300648,1775937048463,-500.0,0.00013612,2]
[420300649,1775937048474,-500.0,0.00013667,2]
[420300650,1775937048483,-500.0,0.00013698,2]
[420300651,1775937048502,-500.0,0.00013698,2]
[420300652,1775937048515,-500.0,0.00013698,2]
[420300653,1775937048525,-500.0,0.00013698,2]
[420300654,1775937048545,-330.42129237,0.00013698,2]
[420300655,1775937048556,-500.0,0.00013698,2]
[420300656,1775937048565,-500.0,0.00013698,2]
[420300657,1775937048577,-500.0,0.00013698,2]
[420300658,1775937048587,-500.0,0.00013698,2]
[420300659,1775937048605,-698.07,0.00013698,2]
[420300660,1775937048615,-698.07,0.00013698,2]
[420300661,1775937048646,-698.07,0.00013698,2]
[420300662,1775937048659,-200.0,0.00013699,2]
[420300663,1775937048676,-533.57,0.00013699,2]
[420300664,1775937048702,-166.66,0.00013699,2]
[420300665,1775937048712,-5191.38,0.00013699,2]
[420300666,1775937048741,-7956.24,0.00013699,2]
[420300667,1775937048791,-1189.89,0.00013699,2]
[420300668,1775937048851,-6434.36,0.00013699,2]
[420300669,1775937048885,-4999.99,0.00013699,2]
[420300670,1775937048895,-150.99,0.00013699,2]
[420300671,1775937048916,-169.74,0.00013699,2]
[420300672,1775937048929,-150.0,0.00013699,2]
[420300673,1775937048939,-150.0,0.00013699,2]
[420300674,1775937048950,-150.0,0.00013699,2]
[420300675,1775937048960,-150.0,0.00013699,2]
[420300676,1775937048974,-150.0,0.00013699,2]
[420300677,1775937048983,-185.38942847,0.00013699,2]
[420300678,1775937048993,-224.12,0.000137,2]
[420300679,1775937049014,-224.12,0.000137,2]
[420300680,1775937049024,-224.12,0.000137,2]
[420300681,1775937049035,-224.12,0.000137,2]
[420300682,1775937049049,-224.12,0.000137,2]
[420300683,1775937049060,-153.59857004,0.00013706,2]
[420300684,1775937049075,-500.0,0.00013722,2]
[420300685,1775937049089,-500.0,0.00013777,2]
[420300686,1775937049100,-482.14901603,0.00013781,2]
[420300687,1775937049111,-166.66,0.00013819,2]
[420300688,1775937049127,-500.0,0.00013832,2]
[420300689,1775937049136,-283.0,0.00013833,5]
[420300690,1775937049150,-166.66,0.00013836,2]
[420300691,1775937049159,-500.0,0.00013887,2]